bitfinex-derivatives/quotes_BTCF0:USTF0_20250313
["timestamp","ask_amount","ask_price","bid_price","bid_amount"]
[1741880434693,0.12359381,81038.0,81037.0,0.13527781]
[1741880434887,0.12359381,81038.0,81037.0,0.14903294]
[1741880435288,0.1234102,81037.0,81036.0,0.0765]
[1741880435794,0.1234255,81027.0,81026.0,0.172787]
[1741880436295,0.0617086,81033.0,81026.0,0.04936]
[1741880436487,0.1234119,81036.0,81035.0,0.0617059]
[1741880436686,0.06188971,81038.0,81036.0,0.1234118]
[1741880436687,0.004,81037.0,81036.0,0.1234118]
[1741880436890,0.0617066,81036.0,81033.0,0.0798]
[1741880437097,0.1234133,81035.0,81034.0,0.0788]
[1741880437593,0.2041133,81035.0,81034.0,0.0788]
[1741880437990,0.1234255,81027.0,81026.0,0.04936]
[1741880438298,0.12343,81024.0,81023.0,0.1234312]
[1741880438499,0.0617119,81029.0,81016.0,0.1234418]
[1741880438696,0.0617119,81029.0,81015.0,0.01239162]
[1741880438697,0.1234422,81016.0,81015.0,0.01239162]
[1741880438992,0.1234422,81016.0,80987.0,1.07612]
[1741880438993,0.1234651,81001.0,81000.0,0.1005]
[1741880439187,0.1516,81006.0,81005.0,0.123459]
[1741880439387,0.00018511,81009.0,81008.0,0.1234544]
[1741880439789,0.123459,81005.0,81004.0,0.2040605]
[1741880440191,0.123459,81005.0,81004.0,0.0806]
[1741880440400,0.1234651,81001.0,81000.0,0.1005]
[1741880440591,0.1234651,81001.0,81000.0,0.3045666]
[1741880440794,0.061725,81011.0,81000.0,0.1811]
[1741880441099,1.5,81074.0,81000.0,0.1811]
[1741880441100,0.6941,81049.0,81000.0,0.35455602]
[1741880441302,0.01198015,81029.0,81023.0,0.1234316]
[1741880441484,0.075,81028.0,81023.0,0.1234316]
[1741880441692,0.12528242,81024.0,81023.0,0.1234316]
[1741880442001,0.00185242,81024.0,81023.0,0.1234316]
[1741880442293,0.00185242,81024.0,81022.0,0.0758]
[1741880442501,0.1234316,81023.0,81022.0,0.0758]
[1741880442687,0.1234316,81023.0,81022.0,0.1992331]
[1741880442999,0.17949294,81037.0,81022.0,0.6258]
[1741880443189,0.21549177,81045.0,81032.0,0.0617084]
[1741880443494,0.21549177,81045.0,81044.0,0.1233996]
[1741880443695,0.01198644,81062.0,81044.0,0.06386471]
[1741880443899,0.6941,81069.0,81068.0,0.1233631]
[1741880444193,0.1233615,81069.0,81068.0,0.13565532]
[1741880444397,0.1233615,81069.0,81068.0,0.01229222]
[1741880444597,0.1233615,81069.0,81068.0,0.04973399]
[1741880445001,0.85666,81069.0,81044.0,0.0616994]
[1741880445191,0.85666,81069.0,81015.0,1.23812]
[1741880445192,0.1233965,81046.0,81045.0,0.02014466]
[1741880445498,0.85674,81052.0,81010.0,0.00010528]
[1741880445799,0.1234407,81019.0,81018.0,0.1851512]
[1741880445997,0.1234407,81019.0,81018.0,0.08204044]
[1741880446400,0.1234407,81019.0,81018.0,0.16084044]
[1741880446698,0.0617151,81024.0,81018.0,0.16084044]
[1741880446897,0.00018511,81027.0,81026.0,0.123427]
[1741880447092,0.123427,81026.0,81025.0,0.153]
[1741880447297,0.00018511,81027.0,81025.0,0.153]
[1741880447602,0.00018511,81027.0,81026.0,0.123427]
[1741880447603,0.12361211,81027.0,81026.0,0.123427]
[1741880447794,0.12361211,81027.0,81026.0,0.278927]
[1741880447993,0.12361211,81027.0,81026.0,0.29901933]
[1741880448396,0.12361211,81027.0,81026.0,0.1555]
[1741880448791,0.12361211,81027.0,81026.0,0.278927]
[1741880448998,0.12361211,81027.0,81026.0,0.1555]
[1741880449696,0.00018511,81027.0,81026.0,0.278927]
[1741880449891,0.0617157,81024.0,81012.0,0.061724]
[1741880450099,0.1234453,81016.0,81015.0,0.1234355]
[1741880450408,0.0617169,81022.0,81021.0,0.1234316]
[1741880450901,0.0617169,81022.0,81021.0,0.14347316]
[1741880451102,0.12461191,81027.0,81026.0,0.123427]
[1741880451303,0.00118511,81027.0,81026.0,0.123427]
[1741880451490,0.00118511,81027.0,81021.0,0.1522]
[1741880451691,0.0617135,81026.0,81022.0,0.01990244]
[1741880451999,0.1234468,81013.0,81012.0,0.2756454]
[1741880452303,0.1234468,81013.0,81012.0,0.29554927]
[1741880452794,0.1234468,81013.0,81012.0,0.2756483]
[1741880453803,0.1234468,81013.0,81012.0,0.02015535]
[1741880454100,0.1234499,81011.0,81010.0,0.00018511]
[1741880454293,0.1234499,81011.0,81010.0,1e-08]
[1741880455591,0.2734499,81011.0,81010.0,1e-08]
[1741880455797,0.2734499,81011.0,80980.0,0.0617482]
[1741880455798,0.6941,81011.0,80979.0,0.00921692]
[1741880456098,0.1234895,80985.0,80984.0,0.41221003]
[1741880456300,0.0617438,80987.0,80984.0,0.41221003]
[1741880456301,0.1608,80987.0,80986.0,0.123488]
[1741880456490,0.1608,80989.0,80988.0,0.1234849]
[1741880456896,0.123488,80986.0,80985.0,0.1499]
[1741880457200,0.138943,80988.0,80985.0,0.16238181]
[1741880457410,0.138943,80988.0,80985.0,0.2733864]
[1741880457697,0.138943,80988.0,80987.0,0.1234864]
[1741880457931,0.1852226,80992.0,80991.0,0.1234788]
[1741880458098,0.2624226,80992.0,80991.0,0.1234788]
[1741880458294,0.2624226,80992.0,80991.0,0.13770742]
[1741880458295,0.07427557,80992.0,80991.0,0.13770742]
[1741880458695,0.15147557,80992.0,80991.0,0.21500742]
[1741880458905,0.69478,80993.0,80991.0,0.21500742]
[1741880459099,0.6941,80993.0,80992.0,0.1234788]
[1741880459299,0.00018511,80997.0,80996.0,0.1234727]
[1741880459502,0.00018511,80997.0,80996.0,0.2831527]
[1741880459800,0.15968,81023.0,80996.0,0.2831527]
[1741880459801,0.123452,81010.0,81001.0,0.1234651]
[1741880460001,0.0617213,81016.0,81001.0,0.13515958]
[1741880460202,0.082,81023.0,81001.0,0.20082608]
[1741880460405,0.2838183,81034.0,81001.0,0.2891316]
[1741880460599,0.0782,81033.0,81006.0,0.0617283]
[1741880460901,0.00018511,81026.0,81009.0,0.00018511]
[1741880461102,0.1234514,81010.0,81009.0,0.00018511]
[1741880461299,0.1234544,81008.0,81007.0,0.01237539]
[1741880461603,0.1569,81009.0,80994.0,0.1488]
[1741880461808,0.1234742,80995.0,80994.0,0.1488]
[1741880462001,0.1234742,80995.0,80994.0,0.2722758]
[1741880462205,0.0617352,80999.0,80998.0,0.1852007]
[1741880462512,0.1234681,80999.0,80998.0,0.1488]
[1741880463402,0.1234681,80999.0,80998.0,0.074]
[1741880463806,0.2021681,80999.0,80998.0,0.074]
[1741880464608,0.2061681,80999.0,80998.0,0.074]
[1741880465110,0.2041681,80999.0,80998.0,0.074]
[1741880466307,0.1254681,80999.0,80998.0,0.074]
[1741880466707,0.2065681,80999.0,80998.0,0.074]
[1741880466905,0.2095681,80999.0,80998.0,0.074]
[1741880467412,0.2095681,80999.0,80994.0,0.0799]
[1741880467413,0.1234742,80995.0,80994.0,0.0799]
[1741880468305,0.1234819,80990.0,80989.0,0.0761]
[1741880468614,0.1234895,80985.0,80984.0,0.0653]
[1741880469410,0.2002895,80985.0,80984.0,0.0653]
[1741880470109,0.2002895,80985.0,80965.0,1.07688]
[1741880470110,0.08878447,80985.0,80957.0,0.0617659]
[1741880470408,0.1235047,80975.0,80974.0,0.0799]
[1741880470603,0.12333632,80975.0,80974.0,0.0799]
[1741880471208,0.19823632,80975.0,80974.0,0.2034063]
[1741880471610,0.1235078,80973.0,80972.0,0.1235088]
[1741880472017,0.1235078,80973.0,80972.0,0.2846088]
[1741880473218,0.1235078,80973.0,80972.0,0.1611]
[1741880473812,0.1235078,80973.0,80972.0,0.1754211]
[1741880474213,0.1235078,80973.0,80972.0,0.2989304]
[1741880475516,0.1235078,80973.0,80972.0,0.0942211]
[1741880475716,0.0617504,80978.0,80972.0,0.11717553]
[1741880475910,0.01198447,80985.0,80973.0,0.08943349]
[1741880476112,0.1852463,80983.0,80982.0,0.0617457]
[1741880476316,0.00956432,80993.0,80992.0,0.1234788]
[1741880476517,0.13304162,80993.0,80992.0,0.1234788]
[1741880476822,0.14506469,80993.0,80992.0,0.1377999]
[1741880477022,0.1356856,80993.0,80992.0,0.1377999]
[1741880477221,0.1234773,80997.0,80996.0,0.0617353]
[1741880477420,0.00914554,81009.0,80992.0,0.03727621]
[1741880477421,0.06358541,81002.0,80992.0,0.03727621]
[1741880477717,0.1234727,80996.0,80995.0,0.0812]
[1741880477920,0.1234727,80996.0,80995.0,0.1588]
[1741880478115,0.1234727,80996.0,80995.0,0.1731211]
[1741880478617,0.1234727,80996.0,80995.0,0.0955211]
[1741880478922,0.2787727,80996.0,80995.0,0.0143211]
[1741880479623,0.1979727,80996.0,80995.0,0.1377953]
[1741880479925,0.0139764,81002.0,81001.0,0.1234651]
[1741880480114,0.0139764,81002.0,81001.0,0.1353147]
[1741880480315,0.1234697,80998.0,80997.0,0.1537]
[1741880481024,0.1234697,80998.0,80997.0,0.16807461]
[1741880481529,0.01886109,81002.0,80997.0,0.16807461]
[1741880481530,0.00685291,81002.0,81001.0,0.1234651]
[1741880481726,0.00685291,81002.0,81001.0,0.16655663]
[1741880482030,0.13031651,81002.0,81001.0,0.20394461]
[1741880482216,0.13031651,81002.0,81001.0,0.32740971]
[1741880482814,0.12531651,81002.0,81001.0,0.32740971]
[1741880483018,0.12531651,81002.0,81001.0,0.20394461]
[1741880483218,0.12531651,81002.0,81001.0,0.32740971]
[1741880483618,0.00485291,81002.0,81001.0,0.32740971]
[1741880483820,0.12831651,81002.0,81001.0,0.32740971]
[1741880484020,0.00018523,81004.0,81003.0,0.123462]
[1741880484215,0.0617253,81012.0,81008.0,0.1851763]
[1741880484419,0.1851866,81009.0,81008.0,0.0617264]
[1741880484615,0.0617276,81009.0,81008.0,0.0617264]
[1741880485031,0.0617276,81009.0,81008.0,0.2173264]
[1741880485218,0.00072,81026.0,81008.0,0.38107406]
[1741880485414,0.21622672,81033.0,81028.0,0.123424]
[1741880485618,0.27793492,81033.0,81028.0,0.16893209]
[1741880485937,0.30187351,81029.0,81028.0,0.16893209]
[1741880486426,0.30187351,81029.0,81028.0,0.18675894]
[1741880486632,0.30187351,81029.0,81028.0,0.20656312]
[1741880486633,0.1234224,81029.0,81028.0,0.20656312]
[1741880486826,0.17845111,81031.0,81028.0,0.09524035]
[1741880487021,0.17845111,81031.0,81030.0,0.1234209]
[1741880487328,0.17845111,81031.0,81030.0,0.16879394]
[1741880487523,0.17845111,81031.0,81030.0,0.38385128]
[1741880487720,0.17845111,81031.0,81030.0,0.44137365]
[1741880487929,0.12213521,81031.0,81030.0,0.44137365]
[1741880488222,0.21437449,81036.0,81035.0,0.1234133]
[1741880488524,0.21437449,81036.0,81035.0,0.14898368]
[1741880488729,0.24977457,81045.0,81035.0,0.21853494]
[1741880488933,0.1234012,81043.0,81042.0,0.1233996]
[1741880489124,0.43487467,81045.0,81044.0,0.1233996]
[1741880489323,0.43487467,81045.0,81044.0,0.1365092]
[1741880489519,0.31147357,81045.0,81044.0,0.1365092]
[1741880489722,0.24977457,81045.0,81044.0,0.15103403]
[1741880489918,0.24977457,81045.0,81044.0,0.16332404]
[1741880490118,0.00018511,81053.0,81044.0,0.16332404]
[1741880490119,0.18527691,81053.0,81052.0,0.1233874]
[1741880490527,0.18527691,81053.0,81052.0,0.13791223]
[1741880490829,0.06188121,81053.0,81052.0,0.13791223]
[1741880491228,0.06688121,81053.0,81052.0,0.1233874]
[1741880491627,0.00518511,81053.0,81051.0,0.0731]
[1741880491930,0.1233874,81052.0,81051.0,0.0731]
[1741880492319,0.00518511,81053.0,81043.0,0.1408]
[1741880492320,0.00518511,81053.0,81043.0,0.0791]
[1741880492528,0.00518511,81053.0,81026.0,0.01201064]
[1741880492529,0.1234102,81037.0,81026.0,0.01201064]
[1741880492728,0.1234102,81037.0,81036.0,1e-08]
[1741880493026,0.6941,81037.0,81004.0,0.0731]
[1741880493230,0.0617262,81010.0,81009.0,0.1851718]
[1741880493533,0.1234559,81007.0,81006.0,0.2469072]
[1741880493826,0.0617271,81009.0,81008.0,0.1234544]
[1741880494430,0.0617271,81009.0,81008.0,0.01439047]
[1741880494617,0.00018511,81015.0,81012.0,0.0617234]
[1741880494823,0.00018511,81015.0,81014.0,0.1234453]
[1741880495020,0.00018511,81015.0,81014.0,0.2775653]
[1741880495222,0.0734,81037.0,81014.0,0.39421811]
[1741880495438,0.0734,81037.0,81023.0,0.123426]
[1741880495439,0.1851483,81024.0,81023.0,0.123426]
[1741880495727,0.0617152,81024.0,81023.0,0.01433499]
[1741880495931,0.061713,81027.0,81015.0,0.0771]
[1741880496133,0.1234422,81016.0,81015.0,0.1506]
[1741880496522,0.1234422,81016.0,81015.0,0.2740438]
[1741880496723,0.1234422,81016.0,81015.0,0.1506]
[1741880496921,0.0734,81017.0,81007.0,0.36918323]
[1741880497126,0.1234544,81008.0,81007.0,0.36918323]
[1741880497632,0.1234544,81008.0,81007.0,0.12364101]
[1741880497931,0.1264437,81016.0,81015.0,0.1234438]
[1741880498136,0.1234437,81016.0,81015.0,0.1234438]
[1741880498721,0.1234437,81016.0,81015.0,0.2819438]
[1741880498925,0.00018511,81024.0,81015.0,0.1585]
[1741880499131,0.00018511,81024.0,81017.0,0.0617196]
[1741880499435,0.00018511,81024.0,81023.0,0.1234316]
[1741880499832,0.12361511,81024.0,81023.0,0.1234316]
[1741880500030,0.00018511,81024.0,81023.0,0.29483095]
[1741880500235,0.00018511,81024.0,81023.0,0.30789953]
[1741880500532,0.12361511,81024.0,81023.0,0.3203022]
[1741880500927,0.061691,81056.0,81045.0,0.1233981]
[1741880501229,0.075,81058.0,81045.0,0.1233981]
[1741880501425,0.12524873,81046.0,81045.0,0.1233981]
[1741880501635,0.00185223,81046.0,81038.0,0.1538]
[1741880501836,0.0617134,81027.0,81024.0,0.0781]
[1741880502130,0.00185223,81046.0,81015.0,0.01252624]
[1741880502131,0.0617113,81032.0,81025.0,0.02564187]
[1741880502337,0.1851556,81021.0,81018.0,0.0781]
[1741880502539,0.141718,81020.0,81017.0,0.00018511]
[1741880502835,0.1234392,81018.0,81017.0,0.32016161]
[1741880503032,0.061712,81028.0,81021.0,0.0617171]
[1741880503239,0.6167299,81080.0,81022.0,0.2083165]
[1741880503240,0.1234316,81023.0,81022.0,0.2083165]
[1741880503734,0.0617111,81030.0,81022.0,0.2362679]
[1741880503927,0.123419,81032.0,81031.0,0.1234194]
[1741880504425,0.123419,81032.0,81031.0,0.01496817]
[1741880505222,0.1234392,81018.0,81017.0,0.00018511]
[1741880505424,0.1234392,81018.0,81017.0,0.02661701]
[1741880505629,0.1234392,81018.0,81017.0,0.01335126]
[1741880505835,0.0617187,81020.0,81019.0,0.1234377]
[1741880506130,0.0617187,81020.0,81019.0,0.13660385]
[1741880506328,0.0617187,81020.0,81019.0,0.14987185]
[1741880506533,0.0617187,81020.0,81019.0,0.18962174]
[1741880507538,0.0617187,81020.0,81019.0,0.34092174]
[1741880508130,0.0627187,81020.0,81019.0,0.36201321]
[1741880508427,0.13573551,81034.0,81033.0,0.1234163]
[1741880508731,0.13573551,81034.0,81033.0,0.1365685]
[1741880508928,0.00018511,81034.0,81033.0,0.16513183]
[1741880509132,0.00018511,81034.0,81033.0,0.18617192]
[1741880509531,0.00018511,81034.0,81033.0,0.34097192]
[1741880509731,0.12359991,81034.0,81033.0,0.3409387]
[1741880510034,0.12359991,81034.0,81033.0,0.05293038]
[1741880510234,0.12359991,81034.0,81033.0,0.03977818]
[1741880510452,0.1234148,81034.0,81033.0,0.03977818]
[1741880510942,0.0617055,81037.0,81033.0,0.02836105]
[1741880511134,0.1234138,81035.0,81034.0,0.2895286]
[1741880511331,0.0617055,81037.0,81036.0,0.1234118]
[1741880511530,0.0617055,81037.0,81036.0,0.149722]
[1741880511936,0.0617055,81037.0,81036.0,0.0263102]
[1741880512134,0.0617055,81037.0,81036.0,0.18930777]
[1741880512343,0.0617055,81037.0,81036.0,0.21023046]
[1741880512539,0.0617055,81037.0,81036.0,0.08681866]
[1741880512736,0.0627055,81037.0,81036.0,0.06589597]
[1741880513438,0.0637055,81037.0,81036.0,0.05265822]
[1741880513634,0.0637055,81037.0,81036.0,0.18940182]
[1741880513841,0.002,81037.0,81036.0,0.26800182]
[1741880514040,0.002,81037.0,81036.0,0.36163401]
[1741880514541,0.1254102,81037.0,81036.0,0.36163401]
[1741880514839,0.002,81037.0,81036.0,0.36163401]
[1741880515343,0.185104,81042.0,81041.0,0.1234026]
[1741880515645,0.263904,81042.0,81041.0,0.17073904]
[1741880516043,0.263904,81042.0,81041.0,0.21032481]
[1741880516238,0.263904,81042.0,81041.0,0.08692221]
[1741880516442,0.340404,81042.0,81041.0,0.08692221]
[1741880516644,0.340404,81042.0,81041.0,0.21032641]
[1741880516839,0.340404,81042.0,81041.0,0.06599002]
[1741880517044,0.340404,81042.0,81041.0,0.05265822]
[1741880517546,0.340404,81042.0,81041.0,0.03958577]
[1741880517746,0.340404,81042.0,81041.0,0.01528842]
[1741880517961,0.1234148,81034.0,81033.0,0.00018511]
[1741880518246,0.1234148,81034.0,81033.0,0.15002056]
[1741880518642,0.1234148,81034.0,81033.0,0.04754148]
[1741880518840,0.1234148,81034.0,81033.0,0.02660426]
[1741880518841,0.1984148,81034.0,81033.0,0.02660426]
[1741880519441,0.2760148,81034.0,81033.0,0.05092598]
[1741880519946,0.2740148,81034.0,81033.0,0.05092598]
[1741880520246,0.4282148,81034.0,81033.0,0.02450683]
[1741880520446,0.3048,81034.0,81010.0,0.15116]
[1741880520639,0.1851602,81019.0,81018.0,0.1851486]
[1741880520840,0.0617129,81029.0,81028.0,0.2468355]
[1741880521040,0.0617129,81029.0,81028.0,0.13676045]
[1741880521239,0.078,81034.0,81028.0,0.07505075]
[1741880521446,0.1234194,81032.0,81031.0,0.1234183]
[1741880521646,0.1234194,81032.0,81031.0,0.13675955]
[1741880521849,0.2034194,81032.0,81031.0,0.13675955]
[1741880522052,0.2034194,81032.0,81031.0,0.16994659]
[1741880522251,0.08,81032.0,81023.0,0.00018511]
[1741880522545,0.08,81032.0,80994.0,0.01289]
[1741880522546,0.123462,81003.0,81002.0,0.41829304]
[1741880522748,0.061726,81010.0,81007.0,0.1851801]
[1741880522749,0.1234598,81008.0,81007.0,0.1851801]
[1741880523153,0.1234598,81008.0,81002.0,0.29483434]
[1741880523154,0.123462,81003.0,81002.0,0.29483434]
[1741880523453,0.1234681,80999.0,80998.0,0.36899812]
[1741880524752,0.2095018,80999.0,80998.0,0.29822922]
[1741880524946,1.0536018,80999.0,80998.0,8e-08]
[1741880525141,1.09081206,80999.0,80998.0,8e-08]
[1741880525342,0.94081206,80999.0,80998.0,8e-08]
[1741880525548,1.09205206,80999.0,80998.0,8e-08]
[1741880525741,0.7801337,80999.0,80998.0,0.12346978]
[1741880525946,0.7801337,80999.0,80998.0,0.12546978]
[1741880526339,0.9036018,80999.0,80998.0,0.00200008]
[1741880526545,0.0125337,80999.0,80998.0,0.12546978]
[1741880526845,0.0617326,81003.0,81002.0,0.1851893]
[1741880528154,0.0617295,81005.0,81002.0,0.1851893]
[1741880528358,0.17975875,81006.0,81004.0,0.1234605]
[1741880528652,0.17975875,81006.0,81005.0,0.196659]
[1741880529045,0.00018511,81011.0,81010.0,0.1234514]
[1741880529245,0.00018511,81011.0,81010.0,0.2746914]
[1741880529549,0.21525964,81013.0,81010.0,0.43722067]
[1741880529749,0.0617067,81035.0,81034.0,0.1234133]
[1741880529945,0.185125,81035.0,81034.0,0.1234133]
[1741880530146,0.06354531,81052.0,81047.0,0.123392]
[1741880530351,0.198492,81049.0,81048.0,0.0723]
[1741880530862,0.275792,81049.0,81048.0,0.0723]
[1741880531356,0.1234042,81041.0,81040.0,0.00018511]
[1741880531655,0.1851054,81043.0,81042.0,0.1234026]
[1741880532161,0.6941,81075.0,81047.0,0.1233935]
[1741880532449,1.0758,81094.0,81051.0,0.1233889]
[1741880532450,0.0616847,81064.0,81051.0,0.1233889]
[1741880532861,0.48674496,81057.0,81051.0,0.23376633]
[1741880533151,0.36336436,81057.0,81051.0,0.23376633]
[1741880533353,0.36336436,81057.0,81051.0,0.25362382]
[1741880533656,0.32727615,81052.0,81051.0,0.23376633]
[1741880534050,0.32727615,81052.0,81051.0,0.2536203]
[1741880534248,0.00018511,81057.0,81056.0,0.1233813]
[1741880534449,0.1850598,81062.0,81061.0,0.1233737]
[1741880534654,0.1850598,81062.0,81061.0,0.13655719]
[1741880534857,0.061687,81062.0,81061.0,0.13655719]
[1741880535052,0.0616778,81073.0,81068.0,0.1233631]
[1741880535351,0.00185096,81082.0,81062.0,0.0728]
[1741880535561,6e-08,81082.0,81081.0,0.1233433]
[1741880535858,0.12864908,81093.0,81092.0,0.1233265]
[1741880536054,0.12864908,81093.0,81092.0,0.13642471]
[1741880536261,0.25197408,81093.0,81092.0,0.1233265]
[1741880536453,0.25197408,81093.0,81092.0,0.13786457]
[1741880536759,0.25197408,81093.0,81092.0,0.2309449]
[1741880537152,0.12864908,81093.0,81092.0,0.2309449]
[1741880537454,0.3514061,81100.0,81092.0,0.2309449]
[1741880537455,0.474722,81100.0,81099.0,0.1233159]
[1741880537661,0.3514061,81100.0,81092.0,0.09453807]
[1741880537853,0.1233174,81098.0,81097.0,0.078]
[1741880538154,0.1233235,81094.0,81093.0,0.01453807]
[1741880538550,0.1233265,81092.0,81085.0,0.078]
[1741880538746,0.1493,81095.0,81084.0,0.00018499]
[1741880538952,0.1233372,81085.0,81084.0,0.00018499]
[1741880539749,0.1980372,81085.0,81084.0,0.00018499]
[1741880539948,0.0747,81085.0,81084.0,0.12352369]
[1741880540554,0.24371704,81094.0,81084.0,0.12352369]
[1741880540555,0.006,81094.0,81093.0,0.123325]
[1741880541157,0.1,81100.0,81093.0,0.123325]
[1741880541158,0.1,81100.0,81099.0,0.1233159]
[1741880542257,0.7682,81138.0,81099.0,0.2745159]
[1741880542458,0.08514971,81120.0,81110.0,0.1232992]
[1741880542762,0.1232856,81119.0,81110.0,0.1232992]
[1741880542959,0.08514971,81120.0,81119.0,0.1232855]
[1741880542960,0.0727,81120.0,81119.0,0.1232855]
[1741880543260,0.0616353,81129.0,81110.0,0.17605464]
[1741880543560,0.072,81136.0,81114.0,0.0616458]
[1741880543761,0.0123676,81136.0,81135.0,0.1232612]
[1741880544061,0.00011917,81133.0,81132.0,0.1232657]
[1741880544250,0.00011917,81133.0,81127.0,0.0616366]
[1741880544251,0.072,81153.0,81131.0,0.1562]
[1741880544457,0.00184968,81154.0,81152.0,0.1232354]
[1741880544652,0.00184968,81154.0,81153.0,0.2794338]
[1741880545267,0.1848404,81159.0,81158.0,0.1232206]
[1741880545959,0.1848404,81159.0,81158.0,0.12307078]
[1741880546560,0.0616126,81159.0,81158.0,0.12307078]
[1741880546762,0.0616078,81165.0,81164.0,0.1232141]
[1741880546959,0.2000018,81175.0,81174.0,0.123202]
[1741880547158,0.13572136,81175.0,81174.0,0.123202]
[1741880547355,0.00184891,81176.0,81174.0,0.123202]
[1741880547568,0.1976874,81184.0,81183.0,0.1231883]
[1741880548071,0.1231874,81184.0,81183.0,0.1231883]
[1741880548267,0.1353233,81184.0,81183.0,0.1231883]
[1741880548776,0.1353227,81184.0,81183.0,0.1231883]
[1741880549163,0.1403227,81184.0,81183.0,0.1231883]
[1741880549568,0.0616031,81172.0,81168.0,0.0616043]
[1741880549773,0.1954072,81171.0,81170.0,0.123208]
[1741880549962,0.1232041,81173.0,81172.0,0.123202]
[1741880550672,0.0615952,81182.0,81166.0,0.15282486]
[1741880550866,0.1232126,81167.0,81166.0,0.12339646]
[1741880552176,0.0616054,81169.0,81166.0,0.12339646]
[1741880552177,0.1847909,81181.0,81180.0,0.1231913]
[1741880552371,0.15692,81182.0,81181.0,0.1231913]
[1741880552573,0.005,81182.0,81181.0,0.1231913]
[1741880552774,0.1281898,81182.0,81181.0,0.1231913]
[1741880553073,0.123208,81172.0,81171.0,0.1848027]
[1741880553671,0.184806,81174.0,81173.0,0.1232035]
[1741880553972,0.0615998,81176.0,81175.0,0.1231989]
[1741880554172,0.1848018,81176.0,81175.0,0.1231989]
[1741880554364,0.0745,81183.0,81166.0,0.15210486]
[1741880554565,0.0615962,81181.0,81174.0,0.061601]
[1741880554766,0.1232126,81169.0,81168.0,0.1848076]
[1741880554971,0.0615987,81177.0,81176.0,0.1231989]
[1741880556467,0.1488,81180.0,81166.0,0.00018486]
[1741880556666,0.1232126,81167.0,81166.0,0.12339896]
[1741880556869,0.1232085,81172.0,81171.0,0.123202]
[1741880557162,0.0721,81176.0,81175.0,0.1232004]
[1741880557473,0.1358965,81180.0,81173.0,0.0616011]
[1741880557474,0.0743,81180.0,81179.0,0.1231944]
[1741880557774,0.00184826,81199.0,81179.0,0.1231944]
[1741880557775,0.00184826,81199.0,81179.0,0.49]
[1741880557979,0.00068,81221.0,81220.0,0.1231322]
[1741880558173,0.15164,81241.0,81181.0,0.61595]
[1741880558174,0.17605464,81230.0,81226.0,0.0615613]
[1741880558375,0.0739,81229.0,81228.0,0.1231201]
[1741880558571,0.00184735,81242.0,81226.0,0.01239431]
[1741880558772,0.00184735,81242.0,81220.0,0.00915547]
[1741880558773,0.17605464,81240.0,81220.0,0.00915547]
[1741880558977,0.17605464,81240.0,81216.0,0.15284]
[1741880559178,0.17605464,81230.0,81216.0,0.15284]
[1741880559480,0.1231428,81213.0,81212.0,0.00018474]
[1741880560466,0.18205464,81230.0,81212.0,0.00018474]
[1741880560773,0.1231428,81213.0,81212.0,0.00018474]
[1741880560970,0.0615678,81218.0,81191.0,0.01356828]
[1741880561167,0.006,81213.0,81212.0,0.1231443]
[1741880561370,9e-08,81213.0,81212.0,0.1231443]
[1741880561566,0.30844584,81269.0,81212.0,0.15]
[1741880561874,0.0615186,81283.0,81278.0,0.1230443]
[1741880562180,0.00184657,81284.0,81283.0,0.1230367]
[1741880562370,0.00018354,81287.0,81284.0,0.0615172]
[1741880562568,0.1,81300.0,81283.0,0.15616]
[1741880562772,0.1,81300.0,81296.0,0.1230171]
[1741880563170,0.00018354,81298.0,81287.0,0.17605464]
[1741880563369,0.00018354,81298.0,81291.0,0.0615119]
[1741880563570,0.00018354,81298.0,81235.0,0.0114579]
[1741880563571,0.1230443,81278.0,81277.0,0.12322753]
[1741880563769,0.0615138,81289.0,81272.0,0.00927658]
[1741880563977,0.0615145,81289.0,81253.0,0.07510898]
[1741880564184,0.1230928,81246.0,81244.0,0.123095]
[1741880564477,0.1230928,81246.0,81229.0,0.01356828]
[1741880564676,0.01198963,81256.0,81230.0,0.3113951]
[1741880564981,0.00018463,81254.0,81240.0,0.3113951]
[1741880565179,0.00018463,81254.0,81237.0,0.00018463]
[1741880565479,0.1231049,81238.0,81237.0,0.00018463]
[1741880565668,0.16044,81238.0,81213.0,0.01356828]
[1741880565868,0.0183,81237.0,81200.0,0.3113951]
[1741880566072,0.0183,81237.0,81210.0,0.3113951]
[1741880566269,0.0183,81237.0,81196.0,0.1231683]
[1741880566270,0.2462469,81226.0,81196.0,0.1231683]
[1741880566469,0.3113951,81220.0,81187.0,0.14755878]
[1741880566677,0.3113951,81210.0,81188.0,0.076]
[1741880566876,0.3113951,81210.0,81195.0,0.00018463]
[1741880566877,0.0183,81209.0,81195.0,0.00018463]
[1741880567078,0.1231686,81196.0,81195.0,0.00018463]
[1741880567281,0.12328263,81196.0,81195.0,0.07618463]
[1741880567474,0.1231686,81196.0,81195.0,0.00018463]
[1741880567674,0.0183,81209.0,81195.0,0.06176953]
[1741880567875,0.1231686,81196.0,81195.0,0.00018463]
[1741880568175,0.12328263,81196.0,81195.0,0.00018463]
[1741880568371,0.0183,81209.0,81198.0,0.123164]
[1741880568571,0.0183,81209.0,81195.0,0.00018463]
[1741880568572,9.634e-05,81208.0,81199.0,0.076]
[1741880568777,0.1231585,81203.0,81202.0,0.1231589]
[1741880568978,0.3113951,81240.0,81211.0,0.1231458]
[1741880569187,0.00029866,81212.0,81202.0,0.076]
[1741880569382,0.00018463,81212.0,81202.0,0.076]
[1741880569583,0.123158,81203.0,81202.0,0.076]
[1741880569788,0.1231686,81196.0,81195.0,0.00018463]
[1741880569986,0.0615832,81198.0,81195.0,0.00018463]
[1741880570185,0.1231686,81196.0,81195.0,0.00018463]
[1741880570388,0.1231686,81196.0,81195.0,0.12335473]
[1741880570586,0.123164,81200.0,81199.0,0.12316]
[1741880570780,0.1231686,81197.0,81196.0,0.1231672]
[1741880570981,0.1231637,81200.0,81199.0,0.123159]
[1741880571175,0.0615833,81198.0,81195.0,0.00018463]
[1741880571487,0.1231686,81196.0,81195.0,0.12335413]
[1741880571688,0.1231686,81196.0,81195.0,0.00018463]
[1741880571689,0.00010655,81196.0,81195.0,0.00018463]
[1741880571884,0.00010655,81196.0,81195.0,0.12335473]
[1741880572074,0.16390463,81212.0,81211.0,0.1231458]
[1741880572075,0.00018463,81212.0,81211.0,0.1231458]
[1741880572283,0.12332893,81212.0,81209.0,0.0705]
[1741880572476,0.1231473,81210.0,81209.0,0.0705]
[1741880572984,0.00018463,81212.0,81211.0,0.1231458]
[1741880573578,0.0615567,81233.0,81211.0,0.0615724]
[1741880573793,0.123129,81224.0,81223.0,0.0615637]
[1741880574093,0.1231443,81212.0,81211.0,0.01431501]
[1741880574285,0.1231822,81187.0,81186.0,0.16738243]